fUSD/lending_fUSD_20240904
["ID","MTS","AMOUNT","RATE_DAILY","PERIOD"]
[337181802,1725492649086,-500.0,0.00014894,2]
[337181803,1725492649095,-1351.37,0.00014894,2]
[337181804,1725492649104,-1787.41,0.00014894,2]
[337181805,1725492649114,-500.0,0.00014894,2]
[337181806,1725492649123,-500.0,0.00014894,2]
[337181807,1725492649133,-1010.82,0.00014894,2]
[337181808,1725492649142,-151.0,0.00014894,2]
[337181809,1725492649152,-151.0,0.00014894,2]
[337181810,1725492649162,-500.0,0.00014894,2]
[337181811,1725492649172,-151.0,0.00014894,2]
[337181812,1725492649181,-151.0,0.00014894,2]
[337181813,1725492649191,-500.0,0.00014894,2]
[337181814,1725492649201,-152.773192,0.00014894,2]
[337181815,1725492649211,-151.0,0.00014894,2]
[337181816,1725492649220,-151.0,0.00014894,2]
[337181817,1725492649229,-151.0,0.00014894,2]
[337181818,1725492649239,-500.0,0.00014894,2]
[337181819,1725492649248,-500.0,0.00014894,2]
[337181820,1725492649258,-3252.7,0.00014894,2]
[337181821,1725492649267,-151.0,0.00014894,2]
[337181822,1725492649278,-500.0,0.00014894,2]
[337181823,1725492649287,-151.0,0.00014894,2]
[337181824,1725492649298,-500.0,0.00014894,2]
[337181825,1725492649308,-588.38,0.00014894,2]
[337181826,1725492649317,-1706.01,0.00014894,2]
[337181827,1725492649327,-509.61175048,0.00014894,2]
[337181828,1725492649336,-500.0,0.00014894,2]
[337181829,1725492649346,-500.0,0.00014894,2]
[337181830,1725492649356,-500.0,0.00014894,2]
[337181831,1725492649365,-151.0,0.00014894,2]
[337181832,1725492649375,-227.66511323,0.00014894,2]
[337181833,1725492649384,-500.0,0.00014894,2]
[337181834,1725492649393,-151.822337,0.00014894,2]
[337181835,1725492649403,-1800.93,0.00014894,2]
[337181836,1725492649412,-500.0,0.00014894,2]
[337181837,1725492649422,-500.0,0.00014894,2]
[337181838,1725492649431,-1498.36,0.00014894,2]
[337181839,1725492649440,-1316.78,0.00014894,2]
[337181840,1725492649450,-225.97044,0.00014894,2]
[337181841,1725492649459,-1871.59,0.00014894,2]
[337181842,1725492649468,-500.0,0.00014894,2]
[337181843,1725492649478,-151.0,0.00014894,2]
[337181844,1725492649487,-151.0,0.00014894,2]
[337181845,1725492649497,-500.0,0.00014894,2]
[337181846,1725492649506,-678.01,0.00014894,2]
[337181847,1725492649516,-500.0,0.00014894,2]
[337181848,1725492649525,-500.0,0.00014894,2]
[337181849,1725492649534,-550.85568791,0.00014894,2]
[337181850,1725492649546,-151.0,0.00014894,2]
[337181851,1725492649555,-151.0,0.00014894,2]
[337181852,1725492649564,-642.05,0.00014894,2]
[337181853,1725492649574,-1411.39,0.00014894,2]
[337181854,1725492649583,-2072.46,0.00014894,2]
[337181855,1725492649592,-151.0,0.00014894,2]
[337181856,1725492649601,-151.0,0.00014894,2]
[337181857,1725492649611,-500.0,0.00014894,2]
[337181858,1725492649620,-151.0,0.00014894,2]
[337181859,1725492649630,-151.0,0.00014894,2]
[337181860,1725492649639,-500.0,0.00014894,2]
[337181861,1725492649648,-500.0,0.00014894,2]
[337181862,1725492649658,-151.0,0.00014894,2]
[337181863,1725492649667,-151.0,0.00014894,2]
[337181864,1725492649677,-500.0,0.00014894,2]
[337181865,1725492649686,-151.0,0.00014894,2]
[337181866,1725492649695,-151.0,0.00014894,2]
[337181867,1725492649704,-2818.43,0.00014894,2]
[337181868,1725492649714,-500.0,0.00014894,2]
[337181869,1725492649723,-151.0,0.00014894,2]
[337181870,1725492649733,-151.0,0.00014894,2]
[337181871,1725492649742,-2092.6,0.00014894,2]
[337181872,1725492649751,-898.01,0.00014894,2]
[337181873,1725492649762,-151.0,0.00014894,2]
[337181874,1725492649771,-151.0,0.00014894,2]
[337181875,1725492649780,-500.0,0.00014894,2]
[337181876,1725492649790,-151.0,0.00014894,2]
[337181877,1725492649800,-151.0,0.00014894,2]
[337181878,1725492649810,-699.92,0.00014894,2]
[337181879,1725492649829,-500.0,0.00014894,2]
[337181880,1725492649839,-500.0,0.00014894,2]
[337181881,1725492649850,-500.0,0.00014894,2]
[337181882,1725492649860,-500.0,0.00014894,2]
[337181883,1725492649869,-359.804839,0.00014894,2]
[337181884,1725492649879,-359.804839,0.00014894,2]
[337181885,1725492649889,-151.690431,0.00014894,2]
[337181886,1725492649898,-2658.78,0.00014894,2]
[337181887,1725492649908,-359.804839,0.00014894,2]
[337181888,1725492649920,-359.804839,0.00014894,2]
[337181889,1725492649930,-1693.1,0.00014894,2]
[337181890,1725492650313,-1823.12,0.00014894,2]
[337181891,1725492650332,-500.0,0.00014894,2]
[337181892,1725492650341,-203.248452,0.00014894,2]
[337181893,1725492650351,-151.0,0.00014894,2]
[337181894,1725492650360,-151.0,0.00014894,2]
[337181895,1725492650370,-2931.24,0.00014894,2]
[337181896,1725492650380,-500.0,0.00014894,2]
[337181897,1725492650389,-1999.85,0.00014894,2]
[337181898,1725492650399,-151.0,0.00014894,2]
[337181899,1725492650408,-216.101442,0.00014894,2]
[337181900,1725492650418,-3806.56,0.00014894,2]
[337181901,1725492650427,-500.0,0.00014894,2]
[337181902,1725492650437,-1407.69,0.00014894,2]
[337181903,1725492650446,-1928.38,0.00014894,2]
[337181904,1725492650456,-500.0,0.00014894,2]
[337181905,1725492650465,-179.8544183,0.00014894,2]
[337181906,1725492650475,-500.0,0.00014894,2]
[337181907,1725492650485,-500.0,0.00014894,2]
[337181908,1725492650495,-151.0,0.00014894,2]
[337181909,1725492650504,-151.0,0.00014894,2]
[337181910,1725492650514,-151.0,0.00014894,2]
[337181911,1725492650524,-151.0,0.00014894,2]
[337181912,1725492650534,-155.819532,0.00014894,2]
[337181913,1725492650543,-712.71,0.00014894,2]
[337181914,1725492650553,-1546.45,0.00014894,2]
[337181915,1725492650564,-500.0,0.00014894,2]
[337181916,1725492650573,-500.0,0.00014894,2]
[337181917,1725492650583,-500.0,0.00014894,2]
[337181918,1725492650593,-500.0,0.00014894,2]
[337181919,1725492650602,-731.74,0.00014894,2]
[337181920,1725492650612,-500.0,0.00014894,2]
[337181921,1725492650622,-2673.83,0.00014894,2]
[337181922,1725492650631,-500.0,0.00014894,2]
[337181923,1725492650640,-500.0,0.00014894,2]
[337181924,1725492650650,-500.0,0.00014894,2]
[337181925,1725492650660,-1728.45,0.00014894,2]
[337181926,1725492650670,-436.456677,0.00014894,2]
[337181927,1725492650679,-436.456677,0.00014894,2]
[337181928,1725492650690,-500.0,0.00014894,2]
[337181929,1725492650700,-436.456677,0.00014894,2]
[337181930,1725492650710,-436.456677,0.00014894,2]
[337181931,1725492650720,-151.0,0.00014894,2]
[337181932,1725492650730,-151.0,0.00014894,2]
[337181933,1725492650740,-1433.37,0.00014894,2]
[337181934,1725492650750,-1718.97,0.00014894,2]
[337181935,1725492650760,-500.0,0.00014894,2]
[337181936,1725492650770,-500.0,0.00014894,2]
[337181937,1725492650779,-714.24,0.00014894,2]
[337181938,1725492650789,-1840.1,0.00014894,2]
[337181939,1725492650799,-508.73,0.00014894,2]
[337181940,1725492650808,-151.0,0.00014894,2]
[337181941,1725492650818,-151.0,0.00014894,2]
[337181942,1725492650828,-500.0,0.00014894,2]
[337181943,1725492650838,-694.32,0.00014894,2]
[337181944,1725492650848,-2728.07,0.00014894,2]
[337181945,1725492650858,-1375.8,0.00014894,2]
[337181946,1725492650868,-388.247873,0.00014894,2]
[337181947,1725492650877,-388.247873,0.00014894,2]
[337181948,1725492650887,-866.53,0.00014894,2]
[337181949,1725492650896,-500.0,0.00014894,2]
[337181950,1725492650906,-1890.84,0.00014894,2]
[337181951,1725492650915,-500.0,0.00014894,2]
[337181952,1725492650930,-1361.99,0.00014894,2]
[337181953,1725492650939,-500.0,0.00014894,2]
[337181954,1725492650949,-820.65,0.00014894,2]
[337181955,1725492650958,-500.0,0.00014894,2]
[337181956,1725492650970,-500.0,0.00014894,2]
[337181957,1725492650980,-1232.5,0.00014894,2]
[337181958,1725492650990,-573.61,0.00014894,2]
[337181959,1725492650999,-2398.48,0.00014894,2]
[337181960,1725492651010,-500.0,0.00014894,2]
[337181961,1725492651020,-2008.01,0.00014894,2]
[337181962,1725492651029,-1806.75,0.00014894,2]
[337181963,1725492651038,-599.16,0.00014894,2]
[337181964,1725492651049,-151.0,0.00014894,2]
[337181965,1725492651059,-500.0,0.00014894,2]
[337181966,1725492651068,-151.0,0.00014894,2]
[337181967,1725492651078,-151.0,0.00014894,2]
[337181968,1725492651088,-151.0,0.00014894,2]
[337181969,1725492651098,-500.0,0.00014894,2]
[337181970,1725492651107,-2217.69,0.00014894,2]
[337181971,1725492651116,-1673.34,0.00014894,2]
[337181972,1725492651126,-151.0,0.00014894,2]
[337181973,1725492651135,-151.0,0.00014894,2]
[337181974,1725492651144,-2249.0,0.00014894,2]
[337181975,1725492651153,-2051.96,0.00014894,2]
[337181976,1725492651162,-500.0,0.00014894,2]
[337181977,1725492651172,-500.0,0.00014894,2]
[337181978,1725492651181,-500.0,0.00014894,2]
[337181979,1725492651191,-500.0,0.00014894,2]
[337181980,1725492651200,-500.0,0.00014894,2]
[337181981,1725492651209,-602.27,0.00014894,2]
[337181982,1725492651219,-1364.54,0.00014894,2]
[337181983,1725492651228,-208.255689,0.00014894,2]
[337181984,1725492651238,-208.255689,0.00014894,2]
[337181985,1725492651247,-923.44,0.00014894,2]
[337181986,1725492651256,-2085.29,0.00014894,2]
[337181987,1725492651265,-8161.67,0.00014894,2]
[337181988,1725492651274,-500.0,0.00014894,2]
[337181989,1725492651284,-500.0,0.00014894,2]
[337181990,1725492651293,-500.0,0.00014894,2]
[337181991,1725492651302,-500.0,0.00014894,2]
[337181992,1725492651312,-1854.86,0.00014894,2]
[337181993,1725492651322,-500.0,0.00014894,2]
[337181994,1725492651331,-819.95,0.00014894,2]
[337181995,1725492651343,-10087.37,0.00014894,2]
[337181996,1725492651355,-500.0,0.00014894,2]
[337181997,1725492651365,-663.73,0.00014894,2]
[337181998,1725492651375,-151.0,0.00014894,2]
[337181999,1725492651384,-151.0,0.00014894,2]
[337182000,1725492651394,-151.0,0.00014894,2]
[337182001,1725492651405,-1026.48,0.00014894,2]
[337182002,1725492651414,-1483.69,0.00014894,2]
[337182003,1725492651424,-7794.09,0.00014894,2]
[337182004,1725492651433,-607.91,0.00014894,2]
[337182005,1725492651443,-151.0,0.00014894,2]
[337182006,1725492651452,-151.0,0.00014894,2]
[337182007,1725492651462,-151.0,0.00014894,2]
[337182008,1725492651472,-151.0,0.00014894,2]
[337182009,1725492651481,-151.0,0.00014894,2]
[337182010,1725492651491,-171.530917,0.00014894,2]
[337182011,1725492651500,-263.309872,0.00014894,2]
[337182012,1725492651510,-171.530917,0.00014894,2]
[337182013,1725492651519,-35504.94,0.00014894,2]
[337182014,1725492651529,-171.530917,0.00014894,2]
[337182015,1725492651539,-171.530917,0.00014894,2]
[337182016,1725492651551,-171.530917,0.00014894,2]
[337182017,1725492651560,-171.530917,0.00014894,2]
[337182018,1725492651569,-500.0,0.00014894,2]
[337182019,1725492651579,-151.0,0.00014894,2]
[337182020,1725492651589,-151.0,0.00014894,2]
[337182021,1725492651599,-151.0,0.00014894,2]
[337182022,1725492651608,-500.0,0.00014894,2]
[337182023,1725492651618,-475.61523117,0.00014894,2]
[337182024,1725492651628,-5466.76,0.00014894,2]
[337182025,1725492651638,-500.0,0.00014894,2]
[337182026,1725492651648,-219.641566,0.00014894,2]
[337182027,1725492651658,-2751.94,0.00014894,2]
[337182028,1725492651668,-1641.83,0.00014894,2]
[337182029,1725492651677,-2153.09,0.00014894,2]
[337182030,1725492651687,-2513.27,0.00014894,2]
[337182031,1725492651698,-697.3,0.00014894,2]
[337182032,1725492651710,-151.317023,0.00014894,2]
[337182033,1725492651720,-500.0,0.00014894,2]
[337182034,1725492651732,-500.0,0.00014894,2]
[337182035,1725492651742,-533.71,0.00014894,2]
[337182036,1725492651752,-151.0,0.00014894,2]
[337182037,1725492651761,-151.0,0.00014894,2]
[337182038,1725492651770,-193.639524,0.00014894,2]
[337182039,1725492651780,-930.99,0.00014894,2]
[337182040,1725492651790,-4153.51278161,0.00014895,2]
[337182041,1725492651800,-304.25145339,0.00014899,2]
[337182042,1725492651810,-500.0,0.00014899,2]
[337182043,1725492651819,-500.0,0.00014899,2]
[337182044,1725492651828,-633.69,0.00014899,2]
[337182045,1725492651838,-573.78,0.00014899,2]
[337182046,1725492651847,-2247.21,0.00014899,2]
[337182047,1725492651856,-688.21,0.00014899,2]
[337182048,1725492651866,-2834.76,0.00014899,2]
[337182049,1725492651875,-157.036443,0.000149,2]
[337182050,1725492651886,-151.0,0.000149,2]
[337182051,1725492651895,-151.0,0.000149,2]
[337182052,1725492651905,-151.0,0.000149,2]
[337182053,1725492651916,-151.0,0.000149,2]
[337182054,1725492651927,-151.0,0.000149,2]
[337182055,1725492651936,-359.804839,0.000149,2]
[337182056,1725492651946,-359.804839,0.000149,2]
[337182057,1725492651955,-500.0,0.000149,2]
[337182058,1725492651965,-500.0,0.000149,2]
[337182059,1725492651974,-500.0,0.000149,2]
[337182060,1725492651984,-500.0,0.000149,2]
[337182061,1725492651993,-500.0,0.000149,2]
[337182062,1725492652003,-500.0,0.000149,2]
[337182063,1725492652013,-151.0,0.000149,2]
[337182064,1725492652022,-208.255689,0.000149,2]
[337182065,1725492652032,-700.0,0.0001497,2]
[337182066,1725492652042,-500.0,0.00014973,2]
[337182067,1725492652051,-523.37708839,0.00014973,2]
[337182068,1725492652060,-500.0,0.00014973,2]
[337182069,1725492652070,-151.0,0.00014973,2]
[337182070,1725492652079,-151.0,0.00014973,2]
[337182071,1725492652089,-169.138357,0.00014973,2]
[337182072,1725492652098,-500.0,0.00014985,2]
[337182073,1725492652107,-500.0,0.00014985,2]
[337182074,1725492652116,-500.0,0.00014985,2]
[337182075,1725492652125,-500.0,0.00014985,2]
[337182076,1725492652134,-500.0,0.00014985,2]
[337182077,1725492652143,-500.0,0.00014985,2]
[337182078,1725492652153,-500.0,0.00014985,2]
[337182079,1725492652163,-500.0,0.00014985,2]
[337182080,1725492652172,-500.0,0.00014985,2]
[337182081,1725492652182,-500.0,0.00014985,2]
[337182082,1725492652191,-164.5191,0.00014985,2]
[337182083,1725492652200,-151.0,0.00014986,2]
[337182084,1725492652209,-427.35,0.00014986,2]
[337182085,1725492652219,-427.35,0.00014986,2]
[337182086,1725492652228,-427.35,0.00014986,2]
[337182087,1725492652236,-427.35,0.00014986,2]
[337182088,1725492652246,-427.35,0.00014986,2]
[337182089,1725492652255,-427.35,0.00014986,2]
[337182090,1725492652263,-427.35,0.00014986,2]
[337182091,1725492652273,-427.35,0.00014986,2]
[337182092,1725492652282,-427.35,0.00014986,2]
[337182093,1725492652291,-427.35,0.00014986,2]
[337182094,1725492652300,-427.35,0.00014986,2]
[337182095,1725492652310,-357.33,0.00014986,2]
[337182096,1725492652319,-427.35,0.00014986,2]
[337182097,1725492652328,-357.33,0.00014986,2]
[337182098,1725492652338,-427.35,0.00014986,2]
[337182099,1725492652347,-357.33,0.00014986,2]
[337182100,1725492652356,-427.35,0.00014986,2]
[337182101,1725492652365,-427.35,0.00014986,2]
[337182102,1725492652374,-357.33,0.00014986,2]
[337182103,1725492652383,-357.33,0.00014986,2]
[337182104,1725492652392,-427.35,0.00014986,2]
[337182105,1725492652401,-427.35,0.00014986,2]
[337182106,1725492652411,-357.33,0.00014986,2]
[337182107,1725492652420,-427.35,0.00014986,2]
[337182108,1725492652429,-357.33,0.00014986,2]
[337182109,1725492652438,-357.33,0.00014986,2]
[337182110,1725492652447,-427.35,0.00014986,2]
[337182111,1725492652455,-357.33,0.00014986,2]
[337182112,1725492652464,-427.35,0.00014986,2]
[337182113,1725492652474,-427.35,0.00014986,2]
[337182114,1725492652483,-357.33,0.00014986,2]
[337182115,1725492652492,-427.35,0.00014986,2]
[337182116,1725492652501,-357.33,0.00014986,2]
[337182117,1725492652510,-357.33,0.00014986,2]
[337182118,1725492652519,-357.33,0.00014986,2]
[337182119,1725492652529,-357.33,0.00014986,2]
[337182120,1725492652539,-357.33,0.00014986,2]
[337182121,1725492652548,-357.33,0.00014986,2]
[337182122,1725492652557,-357.33,0.00014986,2]
[337182123,1725492652566,-357.33,0.00014986,2]
[337182124,1725492652575,-357.33,0.00014986,2]
[337182125,1725492652584,-357.33,0.00014986,2]
[337182126,1725492652593,-150.0,0.00014986,2]
[337182127,1725492652603,-150.0,0.00014986,2]
[337182128,1725492652612,-150.0,0.00014986,2]
[337182129,1725492652622,-150.0,0.00014986,2]
[337182130,1725492652631,-150.0,0.00014986,2]
[337182131,1725492652715,-400.32,0.00014986,2]
[337182132,1725492652725,-292.84,0.00014986,2]
[337182133,1725492652735,-1177.18,0.00014988,2]
[337182134,1725492652745,-500.0,0.00014988,2]
[337182135,1725492652755,-500.0,0.00014988,2]
[337182136,1725492652764,-500.0,0.00014988,2]
[337182137,1725492652774,-520.68,0.00014988,2]
[337182138,1725492652783,-553.26,0.00014988,2]
[337182139,1725492652793,-500.0,0.00014988,2]
[337182140,1725492652802,-500.0,0.00014988,2]
[337182141,1725492652811,-500.0,0.00014988,2]
[337182142,1725492652821,-151.0,0.00014989,2]
[337182143,1725492652830,-500.0,0.00014989,2]
[337182144,1725492652840,-2708.02,0.00014989,2]
[337182145,1725492652850,-500.0,0.00014989,2]
[337182146,1725492652859,-500.0,0.00014989,2]
[337182147,1725492652868,-455.93,0.00014989,2]
[337182148,1725492652878,-1266.23,0.00014989,2]
[337182149,1725492652888,-2672.31,0.00014989,2]
[337182150,1725492652898,-500.0,0.00014989,2]
[337182151,1725492652908,-774.74,0.00014989,2]
[337182152,1725492653127,-624.29,0.00014989,2]
[337182153,1725492653138,-500.0,0.00014989,2]
[337182154,1725492653148,-897.79,0.00014989,2]
[337182155,1725492653156,-1502.18,0.00014989,2]
[337182156,1725492653165,-1411.38,0.00014989,2]
[337182157,1725492653173,-500.0,0.00014989,2]
[337182158,1725492653182,-723.8,0.00014989,2]
[337182159,1725492653191,-798.56,0.00014989,2]
[337182160,1725492653200,-1171.81,0.00014989,2]
[337182161,1725492653209,-500.0,0.00014989,2]
[337182162,1725492653220,-884.9,0.00014989,2]
[337182163,1725492653229,-500.0,0.00014989,2]
[337182164,1725492653239,-605.51,0.00014989,2]
[337182165,1725492653248,-1200.49,0.00014989,2]
[337182166,1725492653258,-500.0,0.00014989,2]
[337182167,1725492653268,-1813.95,0.00014989,2]
[337182168,1725492653278,-665.98,0.00014989,2]
[337182169,1725492653287,-1779.48,0.00014989,2]
[337182170,1725492653298,-1516.56,0.00014989,2]
[337182171,1725492653310,-876.7,0.00014989,2]
[337182172,1725492653319,-500.0,0.00014989,2]
[337182173,1725492653328,-500.0,0.00014989,2]
[337182174,1725492653337,-500.0,0.00014989,2]
[337182175,1725492653346,-1372.3,0.00014989,2]
[337182176,1725492653355,-817.36,0.00014989,2]
[337182177,1725492653364,-151.0,0.00014989,2]
[337182178,1725492653373,-500.0,0.00014989,2]
[337182179,1725492653381,-151.0,0.00014989,2]
[337182180,1725492653391,-151.0,0.00014989,2]
[337182181,1725492653400,-1428.04,0.00014989,2]
[337182182,1725492653411,-1625.99,0.00014989,2]
[337182183,1725492653423,-500.0,0.00014989,2]
[337182184,1725492653434,-500.0,0.00014989,2]
[337182185,1725492653443,-1231.01,0.00014989,2]
[337182186,1725492653455,-500.0,0.00014989,2]
[337182187,1725492653464,-978.87,0.00014989,2]
[337182188,1725492653473,-1853.86,0.00014989,2]
[337182189,1725492653482,-500.0,0.00014989,2]
[337182190,1725492653491,-1009.79,0.00014989,2]
[337182191,1725492653499,-1514.8,0.00014989,2]
[337182192,1725492653508,-151.0,0.00014989,2]
[337182193,1725492653517,-1405.04,0.00014989,2]
[337182194,1725492653526,-2755.91,0.00014989,2]
[337182195,1725492653535,-664.34,0.00014989,2]
[337182196,1725492653544,-519.93723056,0.00014989,2]
[337182197,1725492653553,-500.0,0.00014989,2]
[337182198,1725492653563,-436.456677,0.00014989,2]
[337182199,1725492653571,-436.456677,0.00014989,2]
[337182200,1725492653581,-151.0,0.00014989,2]
[337182201,1725492653591,-500.0,0.00014989,2]
[337182202,1725492653601,-1799.2,0.00014989,2]
[337182203,1725492653612,-151.0,0.00014989,2]
[337182204,1725492653623,-2862.76,0.00014989,2]
[337182205,1725492653632,-500.0,0.00014989,2]
[337182206,1725492653641,-388.247873,0.00014989,2]
[337182207,1725492653650,-500.0,0.00014989,2]
[337182208,1725492653662,-500.0,0.00014989,2]
[337182209,1725492653671,-500.0,0.00014989,2]
[337182210,1725492653680,-3034.23,0.00014989,2]
[337182211,1725492653690,-2572.11,0.00014989,2]
[337182212,1725492653699,-500.0,0.00014989,2]
[337182213,1725492653708,-151.0,0.00014989,2]
[337182214,1725492653719,-151.0,0.00014989,2]
[337182215,1725492653728,-1402.72,0.00014989,2]
[337182216,1725492653738,-527.02,0.00014989,2]
[337182217,1725492653749,-500.0,0.00014989,2]
[337182218,1725492653759,-500.0,0.00014989,2]
[337182219,1725492653769,-864.3,0.00014989,2]
[337182220,1725492653779,-500.0,0.00014989,2]
[337182221,1725492653789,-500.0,0.00014989,2]
[337182222,1725492653799,-52124.22086869,0.00014989,2]
[337182223,1725492653808,-500.0,0.00014989,2]
[337182224,1725492653818,-1635.69,0.00014989,2]
[337182225,1725492653827,-1085.28,0.00014989,2]
[337182226,1725492653836,-500.0,0.00014989,2]
[337182227,1725492653847,-500.0,0.00014989,2]
[337182228,1725492653858,-500.0,0.00014989,2]
[337182229,1725492653867,-992.43,0.00014989,2]
[337182230,1725492653876,-500.0,0.00014989,2]
[337182231,1725492653885,-500.0,0.00014989,2]
[337182232,1725492653895,-537.23540052,0.00014989,2]
[337182233,1725492653904,-500.0,0.00014989,2]
[337182234,1725492653914,-2685.92,0.00014989,2]
[337182235,1725492653927,-4005.91,0.00014989,2]
[337182236,1725492653936,-500.0,0.00014989,2]
[337182237,1725492653945,-5782.81,0.00014989,2]
[337182238,1725492653954,-500.0,0.00014989,2]
[337182239,1725492653963,-151.0,0.00014989,2]
[337182240,1725492653972,-601.82,0.00014989,2]
[337182241,1725492653981,-500.0,0.00014989,2]
[337182242,1725492653991,-500.0,0.00014989,2]
[337182243,1725492654002,-5416.7,0.00014989,2]
[337182244,1725492654011,-649.02,0.00014989,2]
[337182245,1725492654020,-2010.43,0.00014989,2]
[337182246,1725492654029,-500.0,0.00014989,2]
[337182247,1725492654039,-589.23,0.00014989,2]
[337182248,1725492654054,-151.0,0.00014989,2]
[337182249,1725492654063,-990.08,0.00014989,2]
[337182250,1725492654072,-171.530917,0.00014989,2]
[337182251,1725492654081,-171.530917,0.00014989,2]
[337182252,1725492654090,-500.0,0.00014989,2]
[337182253,1725492654099,-151.0,0.00014989,2]
[337182254,1725492654108,-1536.27,0.00014989,2]
[337182255,1725492654117,-603.75,0.00014989,2]
[337182256,1725492654126,-6851.68,0.00014989,2]
[337182257,1725492654135,-1843.17,0.00014989,2]
[337182258,1725492654144,-500.0,0.00014989,2]
[337182259,1725492654153,-548.73,0.00014989,2]
[337182260,1725492654162,-13028.41,0.00014989,2]
[337182261,1725492654171,-2743.99,0.00014989,2]
[337182262,1725492654182,-754.33,0.00014989,2]
[337182263,1725492654192,-606.1389416,0.00014989,2]
[337182264,1725492654201,-1160.05,0.00014989,2]
[337182265,1725492654210,-500.0,0.00014989,2]
[337182266,1725492654222,-500.0,0.00014989,2]
[337182267,1725492654232,-500.0,0.00014989,2]
[337182268,1725492654242,-500.0,0.00014989,2]
[337182269,1725492654251,-942.71,0.00014989,2]
[337182270,1725492654262,-520.68,0.00014989,2]
[337182271,1725492654272,-553.26,0.00014989,2]
[337182272,1725492654282,-500.0,0.00014989,2]
[337182273,1725492654293,-151.0,0.00014989,2]
[337182274,1725492654301,-500.0,0.00014989,2]
[337182275,1725492654312,-500.0,0.00014989,2]
[337182276,1725492654321,-500.0,0.00014989,2]
[337182277,1725492654332,-2207.69064325,0.0001499,5]
[337182278,1725492654343,-2000.0,0.0001499,2]
[337182279,1725492654352,-200.0,0.0001499,2]
[337182280,1725492654362,-2000.0,0.0001499,2]
[337182281,1725492654375,-200.0,0.0001499,2]
[337182282,1725492654384,-151.0,0.0001499,2]
[337182283,1725492654395,-500.0,0.0001499,2]
[337182284,1725492654404,-500.0,0.0001499,2]
[337182285,1725492654414,-500.0,0.0001499,2]
[337182286,1725492654423,-1301.25,0.0001499,2]
[337182287,1725492654432,-500.0,0.0001499,2]
[337182288,1725492654442,-1043.38,0.0001499,2]
[337182289,1725492654451,-678.64,0.0001499,2]
[337182290,1725492654460,-151.977013,0.0001499,2]
[337182291,1725492654471,-151.86806,0.0001499,2]
[337182292,1725492654481,-748.64,0.0001499,2]
[337182293,1725492654492,-500.0,0.0001499,2]
[337182294,1725492654505,-500.0,0.0001499,2]
[337182295,1725492654516,-500.0,0.0001499,2]
[337182296,1725492654525,-670.94,0.0001499,2]
[337182297,1725492654536,-733.89,0.0001499,2]
[337182298,1725492654548,-500.0,0.0001499,2]
[337182299,1725492654561,-500.0,0.0001499,2]
[337182300,1725492654570,-905.23,0.0001499,2]
[337182301,1725492654580,-742.91,0.0001499,2]